Cogmind - Beta 10.1 @@@ ROGUE MODE // 2020.09.25 @ 20:37:52 // Winter2019/RPGLIKE Player: HOTSOUP Result: Destroyed by G-47 Trooper with Particle Gun Performance ------------- Evolutions (3) 1500 Regions Visited (4) 800 Robots Destroyed (17) 85 Value Destroyed (363) 363 Prototype IDs (7) 140 Alien Tech Used (0) 0 Bonus (0) 0 TOTAL SCORE: 2888 Bonus ------- None Cogmind --------- Core Integrity 0/1150 Matter 255/300 Energy 100/100 System Corruption 2% Temperature Cool (18) Movement Core (50) Location -7/Factory Parts ------- > --- POWER (1) -------- (None) > --- PROPULSION (1) --- (None) > --- UTILITY (2) ------ System Backup Module System Backup Module > --- WEAPON (1) ------- (None) > --- INVENTORY (1) ---- Flail Peak State ------------ > --- POWER ------------ Improved Deuterium Engine > --- PROPULSION ------- Improved Flight Unit > --- UTILITY ---------- Advanced Sensor Array Signal Interpreter > --- WEAPON ----------- Flail > --- INVENTORY -------- (None) [Rating: 13] Favorites ----------- Power Backup Power I Engine Backup Power I Propulsion Improved Flight Unit Hover Unit Backup Propulsion I Flight Unit Improved Flight Unit Utility Signal Interpreter Device Sensor Array Processor Signal Interpreter Weapon Flail Ballistic Gun Assault Rifle Impact Weapon Flail Build | -11 -10 -9 -8 -7 ------- Run | Scr Mat Mat Mat Fac Slots Evolved 1 | . . 1 . . Power . | . . . . . Propulsion . | . . . . . Utility 1 | . . 1 . . Weapon . | . . . . . Parts Attached 17 | 1 6 3 1 6 Power 1 | . . . . 1 Engine 1 | . . . . 1 Core . | . . . . . Reactor . | . . . . . Propulsion 4 | . 2 1 . 1 Treads . | . . . . . Leg . | . . . . . Wheel . | . . . . . Hover . | . . . . . Flight 4 | . 2 1 . 1 Utility 8 | . 2 1 1 4 Device 6 | . 2 . . 4 Storage . | . . . . . Processor 2 | . . 1 1 . Hackware . | . . . . . Protection . | . . . . . Artifact . | . . . . . Weapon 4 | 1 2 1 . . Energy Gun . | . . . . . Energy Cannon . | . . . . . Ballistic Gun 1 | 1 . . . . Ballistic Cannon . | . . . . . Launcher . | . . . . . Special Weapon . | . . . . . Impact Weapon 3 | . 2 1 . . Slashing Weapon . | . . . . . Piercing Weapon . | . . . . . Special Melee Weapon . | . . . . . Unidentified Prototypes 1 | . . 1 . . Parts Lost 3 | . . 2 . 1 Power . | . . . . . Propulsion 2 | . . 1 . 1 Utility 1 | . . 1 . . Weapon . | . . . . . Highest Loss Streak 1 | . . 1 . 1 Average Slot Usage (%) 70 | . 79 69 76 65 Engine 2 | . 12 . . . Hover 2 | . 9 . . . Flight 13 | . 12 19 20 8 Device 19 | . 19 13 . 25 Processor 13 | . . 16 36 13 Ballistic Gun 3 | . 15 . . . Impact Weapon 16 | . 9 20 20 17 Naked Turns 1 | . 1 . . . Heaviest Build 13 | 2 5 4 2 13 Greatest Support 6 | 3 6 6 6 6 Greatest Overweight (x) 2 | . 1 1 . 2 Average Overweight (x) . | . . . . . Largest Inventory Capacity 1 | . . . . 1 Average Capacity . | . . . . . Most Carried 1 | . . . . 1 Average Carried . | . . . . . Final Capacity 1 | . . . . 1 Final Carried 1 | . . . . 1 Class Distribution -------------------- 100% | Hacker-Mutant Dominant Class ---------------- Hacker-Mutant | -10/Materials Hacker-Mutant | -9/Materials Hacker-Mutant | -8/Materials Hacker-Mutant | -7/Factory Resources | -11 -10 -9 -8 -7 ----------- Run | Scr Mat Mat Mat Fac Matter Collected 393 | 210 48 115 . 20 Remotely . | . . . . . Salvage Created 342 | . 160 75 . 107 Parts 33 | . 21 7 . 5 Haulers Intercepted . | . . . . . Recyclers Shooed 1 | . 1 . . . Parts Field Recycled . | . . . . . Retrieved Matter . | . . . . . Parts Self-Destructed . | . . . . . Prevented . | . . . . . Kills | -11 -10 -9 -8 -7 ------- Run | Scr Mat Mat Mat Fac Combat Hostiles Destroyed 7 | . 4 . . 3 Melee 3 | . . . . 3 Guns 4 | . 4 . . . Classes Destroyed 7 | . 5 . . 2 Worker 2 | . . . . 2 Builder 1 | . 1 . . . Operator 2 | . 1 1 . . Watcher 5 | . 3 2 . . Swarmer 3 | . 3 . . . Grunt 1 | . 1 . . . Programmer 3 | . . . . 3 Best Kill Streak 7 | . 7 3 . 3 Combat Bots Only 3 | . 3 . . 2 Max Kills in Single Turn 1 | . 1 1 . 1 Gunslinging . | . . . . . Exploded . | . . . . . Melee 1 | . . . . 1 Uniques/NPCs Destroyed . | . . . . . Combat | -11 -10 -9 -8 -7 -------- Run | Scr Mat Mat Mat Fac Damage Taken 1604 | . 185 292 169 958 Core 1429 | . 153 244 157 875 Absorbed by Shields . | . . . . . Redirected to Core 618 | . 103 184 44 287 Core Remaining (%) 57 | 100 79 38 12 . Volleys Fired 22 | . 22 . . . Largest 1 | . 1 . . . Hottest 20 | . 20 . . . Shots Fired 22 | . 22 . . . Gun 22 | . 22 . . . Cannon . | . . . . . Launcher . | . . . . . Special . | . . . . . Kinetic 22 | . 22 . . . Thermal . | . . . . . Explosive . | . . . . . Electromagnetic . | . . . . . Robot Hit Streak 4 | . 4 . . . Robot Miss Streak 3 | . 3 . . . Penetration Max . | . . . . . Secondary Targets . | . . . . . Shots Hit Robots 37 | . 14 4 . 19 Core Hits 16 | . 10 2 . 4 Critical Hits . | . . . . . Critical Kills . | . . . . . Critical Parts Destroyed . | . . . . . Melee Attacks 142 | . 9 62 14 57 Impact 142 | . 9 62 14 57 Slashing . | . . . . . Piercing . | . . . . . Sneak Attacks 4 | . . . . 4 Combat Hostiles 2 | . . . . 2 Follow-up Attacks . | . . . . . Damage Inflicted 1103 | . 251 104 . 748 Guns 190 | . 190 . . . Cannons . | . . . . . Explosions . | . . . . . Melee 913 | . 61 104 . 748 Ramming . | . . . . . Kinetic 190 | . 190 . . . Thermal . | . . . . . Explosive . | . . . . . Electromagnetic . | . . . . . Impact 913 | . 61 104 . 748 Slashing . | . . . . . Piercing . | . . . . . Highest Corruption 9 | . . 9 . 6 Average Corruption 5 | . . 7 . 5 Corruption Purged 4 | . . . . 4 Effects 22 | . . 13 . 9 Message Errors 7 | . . 5 . 2 Matter Fused 2 | . . 2 . . Heat Flow Errors 1 | . . . . 1 Parts Rejected 1 | . . . . 1 Data Loss (minor) 3 | . . 2 . 1 Targeting Errors 8 | . . 4 . 4 Overload Shots . | . . . . . Overflow Damage 181 | . 13 13 . 155 Projectiles . | . . . . . Explosions . | . . . . . Melee 181 | . 13 13 . 155 Knockbacks 2 | . . 1 . 1 Impact 2 | . . 1 . 1 Kinetic . | . . . . . Secondary . | . . . . . Self-Inflicted Damage . | . . . . . Shots . | . . . . . Rammed . | . . . . . Targets Rammed . | . . . . . Kicked . | . . . . . Crushed . | . . . . . Highest Temperature 205 | . . . . 205 Average Temperature 105 | . . . . 105 Received Heat Transfer 243 | . 18 9 27 189 Siege Activations . | . . . . . Robots Corrupted . | . . . . . Combat Hostiles . | . . . . . Parts Fried 6 | . 2 2 . 2 Impact Corruptions 8 | . 1 2 . 5 Robots Melted . | . . . . . Combat Hostiles . | . . . . . Parts Melted 3 | . . . . 3 Heat Transferred . | . . . . . Parts Sabotaged . | . . . . . Parts Stolen . | . . . . . Parts Stripped . | . . . . . Power Chain Reactions . | . . . . . Missiles Intercepted . | . . . . . Alert | -11 -10 -9 -8 -7 ------- Run | Scr Mat Mat Mat Fac Peak Influence 227 | . 179 149 134 227 Initial 75 | . . 75 9 60 Average 100 | . 103 109 73 98 Maximum Alert Level 1 | . . . . 1 Low Security (%) 95 | 100 100 100 100 90 Level 1 4 | . . . . 9 Level 2 . | . . . . . Level 3 . | . . . . . Level 4 . | . . . . . Level 5 . | . . . . . High Security . | . . . . . Max Security . | . . . . . Squads Dispatched 12 | . 1 1 1 9 Investigation 4 | . . . 1 3 Extermination 1 | . . . . 1 Reinforcement 4 | . 1 1 . 2 Assault . | . . . . . Garrison 3 | . . . . 3 Intercept . | . . . . . Construction Impeded . | . . . . . Haulers Reinforced . | . . . . . Stealth | -11 -10 -9 -8 -7 --------- Run | Scr Mat Mat Mat Fac Distress Signals 4 | . . 1 3 . Communications Jammed . | . . . . . Distress Signals . | . . . . . Times Spotted 55 | . 8 13 15 19 Peak Tracking Total 15 | . 4 5 15 5 Tactical Retreats 14 | . . 4 3 7 Traps | -11 -10 -9 -8 -7 ------- Run | Scr Mat Mat Mat Fac Traps Triggered 1 | . 1 . . . Indirectly . | . . . . . Trap Hack Attempts . | . . . . . Triggered . | . . . . . Disarmed 6 | . . 6 . . Reprogrammed . | . . . . . Reused . | . . . . . Traps Extracted . | . . . . . Installed . | . . . . . Triggered . | . . . . . Machines | -11 -10 -9 -8 -7 ---------- Run | Scr Mat Mat Mat Fac Machines Disabled . | . . . . . Max in Single Turn . | . . . . . Machines Sabotaged . | . . . . . Garrisons Compromised . | . . . . . Overloaded Fab Kills . | . . . . . Fab Network Shutdowns . | . . . . . Hacking | -11 -10 -9 -8 -7 --------- Run | Scr Mat Mat Mat Fac Machines Accessed 31 | . 7 9 8 7 Terminals 28 | . 6 9 7 6 Fabricators 1 | . . . . 1 Repair Stations 1 | . 1 . . . Recycling Units . | . . . . . Scanalyzers 1 | . . . 1 . Garrison Access . | . . . . . Total Hacks 150 | . 26 49 41 34 Successful 122 | . 21 43 37 21 Failed 28 | . 5 6 4 13 Catastrophic 3 | . 2 . . 1 Database Lockouts . | . . . . . Manual 85 | . 18 24 29 14 Terminals 142 | . 25 49 40 28 Fabricators 6 | . . . . 6 Repair Stations 1 | . 1 . . . Recycling Units . | . . . . . Scanalyzers 1 | . . . 1 . Garrison Access . | . . . . . Terminal Hacks 62 | . 8 23 21 10 Record 3 | . . . . 3 Part Schematic 6 | . 1 1 3 1 Robot Analysis 1 | . . . 1 . Prototype ID Bank 4 | . . 3 1 . Level Access Points 1 | . . . 1 . Branch Access Points 2 | . . 1 1 . Emergency Access Points 3 | . . 1 2 . Terminal Index 4 | . 1 1 1 1 Fabricator Index 1 | . . . . 1 Alert Level 5 | . . 3 . 2 Unreport Threat 1 | . . . . 1 Locate Traps 5 | . 2 2 1 . Disarm Traps 1 | . . 1 . . Dispatch Records 4 | . 1 1 2 . Security Status 1 | . 1 . . . Surveillance Status 1 | . . . 1 . Patrol Status 1 | . . 1 . . Investigation Status 1 | . . . 1 . Reinforcement Status 1 | . . 1 . . Assault Status 1 | . . 1 . . Recall Investigation 1 | . . . 1 . Recall Reinforcements 1 | . . 1 . . Recall Assault 1 | . . . 1 . Hauler Manifests 2 | . . 2 . . Registered Components 1 | . . 1 . . Registered Prototypes 1 | . . . 1 . Zone Layout 8 | . 2 2 3 1 Fabricator Hacks 3 | . . . . 3 Load Schematic 1 | . . . . 1 Build 2 | . . . . 2 Repair Station Hacks 1 | . 1 . . . Refit 1 | . 1 . . . Recycling Unit Hacks . | . . . . . Scanalyzer . | . . . . . Garrison Access Hacks . | . . . . . Unauthorized Hacks 56 | . 12 20 16 8 Terminals 53 | . 12 20 15 6 Track 15 | . 3 6 5 1 Assimilate 4 | . 1 1 2 . Botnet 25 | . 5 9 6 5 Detonate 2 | . 1 . 1 . Disrupt 4 | . 1 3 . . Operators 3 | . 1 1 1 . Fabricators 2 | . . . . 2 Prioritize 1 | . . . . 1 Siphon 1 | . . . . 1 Repair Stations . | . . . . . Recycling Units . | . . . . . Scanalyzers 1 | . . . 1 . Extract 1 | . . . 1 . Garrison Access . | . . . . . Data Cores Recovered . | . . . . . Used . | . . . . . Hacking Detections 24 | . 5 5 7 7 Full Trace Events 4 | . 1 . . 3 Feedback Events . | . . . . . Feedback Blocked . | . . . . . Robot Schematics Acquired . | . . . . . Robots Built . | . . . . . Matter . | . . . . . Time . | . . . . . Total Robot Build Rating . | . . . . . Part Schematics Acquired 9 | . 1 1 6 1 Parts Built 2 | . . . . 2 Matter 277 | . . . . 277 Time 120 | . . . . 120 Total Part Build Rating 8 | . . . . 8 Parts Repaired . | . . . . . Time . | . . . . . Parts Recycled . | . . . . . Recycled Matter . | . . . . . Retrieved Matter . | . . . . . Retrieved Components . | . . . . . Parts Scanalyzed . | . . . . . Part Schematics Acquired . | . . . . . Parts Damaged . | . . . . . Bothacking | -11 -10 -9 -8 -7 ------------ Run | Scr Mat Mat Mat Fac Used RIF Installer . | . . . . . Robots Hacked . | . . . . . Non-combat . | . . . . . Combat . | . . . . . Robot Hacks Applied . | . . . . . Relay Couplers Released . | . . . . . Robots Rewired 2 | . . . . 2 Allies Hacked . | . . . . . Hacks Repelled . | . . . . . Allies | -11 -10 -9 -8 -7 -------- Run | Scr Mat Mat Mat Fac Total Allies 4 | . . 1 1 2 Largest Group 2 | . . 1 1 2 Highest-Rated Group 48 | . . 10 10 48 Highest-Rated Ally 32 | . . 10 10 32 Total Orders 1 | . . 1 . . STAY 1 | . . 1 . . Ally Attacks 5 | . . . . 5 Total Damage 301 | . . . . 301 Kills 2 | . . . . 2 Allies Corrupted . | . . . . . Allies Melted . | . . . . . Intel | -11 -10 -9 -8 -7 ------- Run | Scr Mat Mat Mat Fac Robot Analysis Total 1 | . . . 1 . Derelict Logs Recovered . | . . . . . Drone Launches . | . . . . . Drone Recoveries . | . . . . . Exploration | -11 -10 -9 -8 -7 ------------- Run | Scr Mat Mat Mat Fac Turns Passed 1602 | 17 322 445 103 715 Spaces Moved 1923 | 31 449 498 171 774 Core 501 | 31 52 10 . 408 Treads . | . . . . . Legs . | . . . . . Wheels . | . . . . . Hover 98 | . 98 . . . Flight 1324 | . 299 488 171 366 Fastest Speed 35 | 50 40 35 35 35 Average Speed 47 | 50 50 38 35 54 Slowest Speed 175 | 50 120 100 35 175 Overloaded Moves . | . . . . . Propulsion Burnouts . | . . . . . Robots Hopped 11 | . . . 4 7 Cave-ins Triggered 6 | . 1 5 . . Exploration Rate (%) 36 | 4 76 43 39 22 Regions Visited 4 Branch Regions . Pre-discovered Areas . | . . . . . Known Exits Taken 2 | . . 1 1 . Unknown Exits Taken 2 | 1 1 . . . Scrap Searched . | . . . . . Spaces Dug 78 | . 7 45 7 19 Terrain Destroyed 78 | . 7 45 7 19 Melee 78 | . 7 45 7 19 Projectile . | . . . . . AOE . | . . . . . Terrain Rammed . | . . . . . Walls Destroyed . | . . . . . Machines Disabled . | . . . . . Actions | -11 -10 -9 -8 -7 --------- Run | Scr Mat Mat Mat Fac Total 2340 | 31 503 647 187 972 Wait 216 | . 12 84 6 114 Move 1893 | 30 447 494 162 760 Hop 11 | . . . 4 7 Pick Up . | . . . . . Fast Attach 16 | 1 6 2 1 6 Attach . | . . . . . Detach 1 | . . . . 1 Swap 1 | . . 1 . . Drop 9 | . 3 1 . 5 Fire 22 | . 22 . . . Melee 142 | . 9 62 14 57 Ram . | . . . . . Kick . | . . . . . Crush . | . . . . . Escape Stasis 4 | . 1 3 . . Rewire 11 | . . . . 11 Trap . | . . . . . Miscellaneous 14 | . 3 . . 11 Route ------- -11/Scrapyard -10/Materials (discovered 4 exits: *Mat x3 / [Min]) -9/Materials (discovered 2 exits: *Mat / Min) -8/Materials (discovered 3 exits: *Fac x3) -7/Factory (discovered 1 exit: [*Fac]) History --------- Turn | Location | Event 6 | -11/Scrapyard | Discovered new exit (range 16) 18 | -11/Scrapyard | Entered Materials 59 | -10/Materials | Discovered new exit (range 5) 176 | -10/Materials | Discovered new exit (range 11) 186 | -10/Materials | Discovered new exit (range 16) 238 | -10/Materials | Discovered new exit (range 8) 283 | -10/Materials | Crushed by falling debris 310 | -10/Materials | Build established: Hacker-Mutant 340 | -10/Materials | Entered another Materials area 342 | -9/Materials | Reached level 2 342 | -9/Materials | Upgraded with Utility slot (x1) 487 | -9/Materials | Crushed by falling debris 492 | -9/Materials | Crushed by falling debris 522 | -9/Materials | Crushed by falling debris 523 | -9/Materials | Core integrity fell below 50% 622 | -9/Materials | Crushed by falling debris 632 | -9/Materials | Crushed by falling debris 685 | -9/Materials | Identified exit to Mines 779 | -9/Materials | Discovered new exit (range 13) 784 | -9/Materials | Identified exit to Materials 785 | -9/Materials | Entered another Materials area 786 | -8/Materials | Core integrity fell below 50% 787 | -8/Materials | Reached level 3 867 | -8/Materials | Core integrity fell below 20% 871 | -8/Materials | Identified exit to Factory 888 | -8/Materials | Entered Factory 889 | -7/Factory | Core integrity fell below 50% 889 | -7/Factory | Core integrity fell below 20% 890 | -7/Factory | Reached level 4 1203 | -7/Factory | Garrison activated, responded to threat 1205 | -7/Factory | Reached level 5 1322 | -7/Factory | Discovered new exit (range 15) 1364 | -7/Factory | Fabricated System Backup Module (x2) 1603 | -7/Factory | Destroyed by G-47 Trooper with Particle Gun Last Messages --------------- Testing... Terminal linked with 3 systems. Awaiting botnet instructions. 01430_ ALERT: Suspicious activity at Terminal F020. Dispatching Investigation squad. 01484_ System corrupted: Component data lost. 01491_ System corrupted: Flail targeting data glitched. 01499_ O-16 Technician: "IFF HANDSHAKE FAILED. SECURING TERMINAL." 01500_ IWKL87|NEGN#ZKTWQCFVT>WJVS%/FTDORX=XH 01505_ O-16 Technician uses terminal to summon reinforcements. 01505_ ALERT: Hostiles spotted, dispatching reinforcements to Terminal F013. 01505_ O-16 Technician locks terminal. 01564_ System Backup Module purges 1% of system corruption (4%). 01571_ System corrupted: Heat flow error (+230). 01573_ Connecting with Fabricator... >>Build Building Hacking Suite... ETC: 36 01585_ System Backup Module purges 1% of system corruption (3%). 01598_ System Backup Module purges 1% of system corruption (2%). Map ----- +----------------------------------------------------+ | ???????????????????????????????????????????????? | | ???????????????????????????????????????????????? | | ???????????????????????????????????????????????? | | ???????????????????????????????????????????????? | | ???????????????????????????????????????????????? | | ???????????????????????????????????????????????? | | ???????????????????????????????????????????????? | | ???????????????????????????????????????????????? | | ???????????????????????????????????????????????? | | ???????????????????????????????????????????????? | | ???????????????????????????????????????????????? | | ???????????????????????????????????????????????? | | ???????????????????????????????????????????????? | | ???????????????????????????????????????????????? | | ???????????????????????????????????????????????? | | ???????????????????????????????????????????????? | | ???????????????????????????????????????????????? | | ????#??????????????????????????????????????????? | | ???? #????????????????????????????????????????? | | ??? #????????????????????????????????????????? | | ??? ?????????????????????????????????????????? | | ?? ?????????????????????????????????????????? | | "" ??????????????????????????????????????????? | | ??????????????????????????????????????????? | | "" ????????????????????##############?????????? | | "" ????????????????????#@ #?????????? | | "" ?????????????????????# #?????????? | | ?????????????????????# !! #?????????? | | ??????????????????????# ! #?????????? | | ??????????????????????# #?????????? | | +#########??????????????# #?????????? | | #??????????????# #?????????? | | #??????????????# #?????????? | | #??????????????# #?????????? | | #??????????????# ! g[ #?????????? | | #??????????????# g #?????????? | | #### #??????????????# #?????????? | | ???# #??????????????#########+####?????????? | | ???# #??????????????# #?????????? | | ???# #??????######### #?????????? | | ???# #??????# #"" +?????????? | | ???# #??????# #"F """ """ #?????????? | | ???# #??????# #"" """ """ #?????????? | | ???# #??????# #"" """ """ #?????????? | | ???# ######## """" # #?????????? | | ???# """"" # """" # #?????????? | | #### ""T"" # """" # ###### #?????????? | | #""" # """" # #????# #?????????? | | #"Y + """" !# #????# #?????????? | | #""" """""" # """" # #????# #???? ????? | +----------------------------------------------------+ Best States ------------- Heat Dissipation 25 Energy Generation 16 Energy Capacity 290 Matter Stores 300 Matter Capacity 300 Sight Range 20 Robot Scan Range 16 Terrain Scan Density 10 Evasion (%) 63 Offensive Hacking 35 Defensive Hacking 15 Item Schematics ----------------- Flight Unit | -10/Materials | Hacked Utility Shielding | -9/Materials | Hacked Hvy. Particle Cannon | -8/Materials | Extracted EM Pulse Cannon | -8/Materials | Extracted Particle Cannon | -8/Materials | Extracted Hacking Suite | -8/Materials | Hacked System Shield | -8/Materials | Hacked VTOL Module | -8/Materials | Hacked System Backup Module | -7/Factory | Hacked Robot Schematics ------------------ None Fabricated ------------ System Backup Module | x2 | -7/Factory | Preloaded Alien Tech Used ----------------- None Achievements -------------- None Challenges ------------ None RPGLIKE | -11 -10 -9 -8 -7 --------- Run | Scr Mat Mat Mat Fac Levels Raised 4 | . . 1 1 2 XP Earned 9110 | 3000 555 1570 1650 2335 XP Spent 8975 | . 2700 1500 1200 3575 Upgrades 24 | . 6 2 1 15 Utility Slot 1 | . . 1 . . Core Integrity 11 | . . . . 11 Energy Generation 1 | . . . . 1 Inventory Capacity 1 | . . . . 1 Hack Attack % 7 | . 4 1 1 1 Hack Defense % 3 | . 2 . . 1 Protomatter Created 108 | . 29 . . 79 Integrity Restored 272 | . 35 . . 237 Core 265 | . 28 . . 237 Parts 7 | . 7 . . . Protomatter Decayed 71 | . 16 . . 55 Game ------ Seed HelicalCloakingAutocannon Manual? 0 Play Time 00:46:02 Cumulative 63.0 hours Start 2020.09.25 @ 19:47:45 End 2020.09.25 @ 20:37:52 Sessions 1 Manual Loads 0 Difficulty Rogue Special Mode Winter2019/RPGLIKE Game No. 82 Rogue 59 Adventurer 22 Explorer 1 Win Type - Total 1 Types 1/0/0/0/0/0/0/0/0 Lore% 35 Gallery% 44 Achievement% 35 Wizard Run 0 Options --------- ASCII 0 Keyboard 0 Movement Numpad Keybinds 0 Fullscreen 1 Font 14/SmallcapsGlow Map View 84x54 Tactical HUD 1 Map Filters NONE Filters NONE Steam 1 RUN: 8d206e2c-d3da-48bf-948b-2e9b8f7bdd54